Cogmind - Beta 13 @@@ ROGUE MODE // 2024.04.27 @ 01:16:13 Player: GregoriusTechneticies Result: Self-destructed Performance ------------- Evolutions (3) 1500 Regions Visited (5) 1000 Robots Destroyed (0) 0 Value Destroyed (0) 0 Prototype IDs (0) 0 Alien Tech Used (0) 0 Bonus (834) 834 TOTAL SCORE: 3334 Bonus ------- Pacifist 834 Cogmind --------- Core Integrity 164/700 Matter 32/300 Energy 100/100 System Corruption 10% Temperature Cool (0) Movement Core (50) Location -7/Factory Parts ------- > --- POWER (1) -------- (None) > --- PROPULSION (2) --- (None) > --- UTILITY (8) ------ (None) > --- WEAPON (2) ------- (None) > --- INVENTORY (5) ---- Medium Matter Pod (0) Advanced Visual Processing Unit Improved Signal Interpreter Improved Terrain Scan Processor Peak State ------------ > --- POWER ------------ (None) > --- PROPULSION ------- (None) > --- UTILITY ---------- Advanced Visual Processing Unit System Shield > --- WEAPON ----------- Axe > --- INVENTORY -------- Medium Matter Pod Advanced Visual Processing Unit Improved Signal Interpreter Improved Terrain Scan Processor [Rating: 10] Favorites ----------- Power None Propulsion None Utility System Shield Processor Advanced Visual Processing Unit Hackware System Shield Weapon Axe Slashing Weapon Axe Build | -11 -10 -10 -9 -8 -7 ------- Run | Yrd Mat Min Mat Mat Fac Slots Evolved 6 | . . . 2 2 2 Power . | . . . . . . Propulsion . | . . . . . . Utility 6 | . . . 2 2 2 Weapon . | . . . . . . Parts Attached 6 | . . . . 5 1 Power . | . . . . . . Engine . | . . . . . . Core . | . . . . . . Reactor . | . . . . . . Propulsion . | . . . . . . Treads . | . . . . . . Leg . | . . . . . . Wheel . | . . . . . . Hover . | . . . . . . Flight . | . . . . . . Utility 2 | . . . . 2 . Device . | . . . . . . Storage . | . . . . . . Processor 1 | . . . . 1 . Hackware 1 | . . . . 1 . Protection . | . . . . . . Artifact . | . . . . . . Weapon 4 | . . . . 3 1 Energy Gun . | . . . . . . Energy Cannon . | . . . . . . Ballistic Gun . | . . . . . . Ballistic Cannon . | . . . . . . Launcher . | . . . . . . Special Weapon . | . . . . . . Impact Weapon . | . . . . . . Slashing Weapon 4 | . . . . 3 1 Piercing Weapon . | . . . . . . Special Melee Weapon . | . . . . . . Unidentified Prototypes . | . . . . . . Parts Lost 3 | . . . . . 3 Power . | . . . . . . Propulsion . | . . . . . . Utility 2 | . . . . . 2 Weapon 1 | . . . . . 1 Highest Loss Streak 2 | . . . . . 2 To Critical Strikes . | . . . . . . Average Slot Usage (%) 3 | . . . . 12 2 Hackware 2 | . . . . 4 2 Naked Turns 1045 | . 67 20 58 64 836 Heaviest Build 3 | . . . . 3 3 Greatest Support 3 | 3 3 3 3 3 3 Greatest Overweight (x) . | . . . . . . Average Overweight (x) . | . . . . . . Largest Inventory Capacity 5 | 5 5 5 5 5 5 Average Capacity 5 | 5 5 5 5 5 5 Most Carried 5 | . 1 1 1 5 5 Average Carried 3 | . . 1 1 4 4 Final Capacity 5 | 5 5 5 5 5 5 Final Carried 5 | . 1 1 1 5 4 Class Distribution -------------------- 100% | Mutant Dominant Class ---------------- Mutant | -10/Materials Mutant | -10/Mines Mutant | -9/Materials Mutant | -8/Materials Mutant | -7/Factory Resources | -11 -10 -10 -9 -8 -7 ----------- Run | Yrd Mat Min Mat Mat Fac Matter Collected 66 | 66 . . . . . Remotely . | . . . . . . Salvage Created . | . . . . . . Parts . | . . . . . . Haulers Intercepted . | . . . . . . Recyclers Shooed . | . . . . . . Parts Field Recycled . | . . . . . . Retrieved Matter . | . . . . . . Parts Self-Destructed . | . . . . . . Prevented . | . . . . . . Kills | -11 -10 -10 -9 -8 -7 ------- Run | Yrd Mat Min Mat Mat Fac Combat Hostiles Destroyed . | . . . . . . Classes Destroyed . | . . . . . . Best Kill Streak . | . . . . . . Combat Bots Only . | . . . . . . Max Kills in Single Turn . | . . . . . . Gunslinging . | . . . . . . Exploded . | . . . . . . Melee . | . . . . . . Uniques/NPCs Destroyed . | . . . . . . Combat | -11 -10 -10 -9 -8 -7 -------- Run | Yrd Mat Min Mat Mat Fac Hostile Shots Fired 17 | . . . 1 16 . Missed 8 | . . . . 8 . Damage Taken 831 | . 40 2 12 112 665 Core 702 | . 40 2 12 112 536 Absorbed by Shields . | . . . . . . Core Remaining (%) 89 | 100 . 83 97 79 . Volleys Fired . | . . . . . . Largest . | . . . . . . Hottest . | . . . . . . Shots Fired . | . . . . . . Gun . | . . . . . . Cannon . | . . . . . . Launcher . | . . . . . . Special . | . . . . . . Kinetic . | . . . . . . Thermal . | . . . . . . Explosive . | . . . . . . Electromagnetic . | . . . . . . Robot Hit Streak . | . . . . . . Robot Miss Streak . | . . . . . . Penetration Max . | . . . . . . Secondary Targets . | . . . . . . Shots Hit Robots . | . . . . . . Core Hits 1 | . . 1 . . . Critical Kills . | . . . . . . Critical Parts Destroyed . | . . . . . . Critical Strikes . | . . . . . . Melee Attacks 18 | . . . . 12 6 Impact . | . . . . . . Slashing 18 | . . . . 12 6 Piercing . | . . . . . . Sneak Attacks . | . . . . . . Combat Hostiles . | . . . . . . Follow-up Attacks . | . . . . . . Damage Inflicted 5 | . . 5 . . . Guns . | . . . . . . Cannons . | . . . . . . Explosions . | . . . . . . Melee . | . . . . . . Ramming 5 | . . 5 . . . Kinetic . | . . . . . . Thermal . | . . . . . . Explosive . | . . . . . . Electromagnetic . | . . . . . . Impact . | . . . . . . Slashing . | . . . . . . Piercing . | . . . . . . Highest Corruption 10 | . 2 2 . . 10 Average Corruption 8 | . 2 2 . . 8 Corruption Purged . | . . . . . . Corruption Blocked . | . . . . . . Effects 36 | . . . . . 36 Message Errors 7 | . . . . . 7 Matter Fused 13 | . . . . . 13 Heat Flow Errors 3 | . . . . . 3 Energy Discharges 8 | . . . . . 8 Data Loss (minor) 3 | . . . . . 3 Data Loss (major) 2 | . . . . . 2 Overload Shots . | . . . . . . Overflow Damage . | . . . . . . Projectiles . | . . . . . . Explosions . | . . . . . . Melee . | . . . . . . Knockbacks . | . . . . . . Impact . | . . . . . . Kinetic . | . . . . . . Secondary . | . . . . . . Self-Inflicted Damage 2 | . . 2 . . . Shots . | . . . . . . Rammed 1 | . . 1 . . . Targets Rammed 1 | . . 1 . . . Kicked . | . . . . . . Crushed . | . . . . . . Highest Temperature 245 | . . . . . 245 Average Temperature 126 | . . . . . 126 Received Heat Transfer 42 | . . . 6 36 . Siege Activations . | . . . . . . Robots Corrupted . | . . . . . . Combat Hostiles . | . . . . . . Parts Fried . | . . . . . . Impact Corruptions . | . . . . . . Robots Melted . | . . . . . . Combat Hostiles . | . . . . . . Parts Melted . | . . . . . . Heat Transferred . | . . . . . . Parts Sabotaged . | . . . . . . Parts Stolen . | . . . . . . Parts Stripped . | . . . . . . Power Chain Reactions . | . . . . . . Alert | -11 -10 -10 -9 -8 -7 ------- Run | Yrd Mat Min Mat Mat Fac Peak Influence 123 | . 15 . 54 123 45 Initial 29 | . . . . 22 29 Average 12 | . 1 . 15 48 8 Maximum Alert Level . | . . . . . . Low Security (%) 100 | 100 100 100 100 100 100 Level 1 . | . . . . . . Level 2 . | . . . . . . Level 3 . | . . . . . . Level 4 . | . . . . . . Level 5 . | . . . . . . High Security . | . . . . . . Max Security . | . . . . . . Squads Dispatched 5 | . 1 . . 2 2 Investigation . | . . . . . . Extermination 2 | . . . . . 2 Reinforcement 3 | . 1 . . 2 . Assault . | . . . . . . Garrison . | . . . . . . Intercept . | . . . . . . Searches Triggered . | . . . . . . Construction Impeded . | . . . . . . Haulers Reinforced . | . . . . . . Active Scanning Responses . | . . . . . . Cargo Convoy Interrupts . | . . . . . . Stealth | -11 -10 -10 -9 -8 -7 --------- Run | Yrd Mat Min Mat Mat Fac Distress Signals 2 | . . . . 2 . Communications Jammed . | . . . . . . Distress Signals . | . . . . . . Times Spotted 14 | . 3 . 4 7 . Peak Tracking Total 6 | . 2 . 3 6 2 Tactical Retreats 4 | . . . 1 3 . Traps | -11 -10 -10 -9 -8 -7 ------- Run | Yrd Mat Min Mat Mat Fac Traps Triggered 2 | . 2 . . . . Indirectly . | . . . . . . Trap Hack Attempts . | . . . . . . Triggered . | . . . . . . Disarmed . | . . . . . . Reprogrammed . | . . . . . . Reused . | . . . . . . Traps Extracted . | . . . . . . Installed . | . . . . . . Triggered . | . . . . . . Machines | -11 -10 -10 -9 -8 -7 ---------- Run | Yrd Mat Min Mat Mat Fac Machines Disabled . | . . . . . . Max in Single Turn . | . . . . . . Machines Repaired . | . . . . . . Machines Dismantled . | . . . . . . Machines Sabotaged . | . . . . . . Overloaded Fab Kills . | . . . . . . Hacking | -11 -10 -10 -9 -8 -7 --------- Run | Yrd Mat Min Mat Mat Fac Machines Accessed 5 | . 2 . 1 2 . Terminals 5 | . 2 . 1 2 . Fabricators . | . . . . . . Repair Stations . | . . . . . . Recycling Units . | . . . . . . Scanalyzers . | . . . . . . Garrison Access . | . . . . . . Total Hacks 16 | . 9 . 3 4 . Successful 6 | . 3 . 1 2 . Failed 10 | . 6 . 2 2 . Catastrophic 3 | . 2 . 1 . . Database Lockouts . | . . . . . . Manual 14 | . 9 . 3 2 . Terminals 16 | . 9 . 3 4 . Fabricators . | . . . . . . Repair Stations . | . . . . . . Recycling Units . | . . . . . . Scanalyzers . | . . . . . . Garrison Access . | . . . . . . Terminal Hacks 5 | . 2 . 1 2 . Level Access Points 2 | . . . 1 1 . Terminal Index 1 | . 1 . . . . Unreport Threat 2 | . 1 . . 1 . Fabricator Hacks . | . . . . . . Repair Station Hacks . | . . . . . . Recycling Unit Hacks . | . . . . . . Scanalyzer . | . . . . . . Garrison Access Hacks . | . . . . . . Unauthorized Hacks 1 | . 1 . . . . Terminals 1 | . 1 . . . . Botnet 1 | . 1 . . . . Fabricators . | . . . . . . Repair Stations . | . . . . . . Recycling Units . | . . . . . . Scanalyzers . | . . . . . . Garrison Access . | . . . . . . Data Cores Recovered . | . . . . . . Used . | . . . . . . Hacking Detections 5 | . 2 . 1 2 . Full Trace Events . | . . . . . . Feedback Events . | . . . . . . Feedback Blocked . | . . . . . . Robot Schematics Acquired . | . . . . . . Robots Built . | . . . . . . Authchips . | . . . . . . Time . | . . . . . . Total Robot Build Rating . | . . . . . . Part Schematics Acquired . | . . . . . . Parts Built . | . . . . . . Authchips . | . . . . . . Time . | . . . . . . Total Part Build Rating . | . . . . . . Parts Repaired . | . . . . . . Time . | . . . . . . Parts Recycled . | . . . . . . Recycled Matter . | . . . . . . Retrieved Matter . | . . . . . . Retrieved Components . | . . . . . . Parts Scanalyzed . | . . . . . . Part Schematics Acquired . | . . . . . . Parts Damaged . | . . . . . . Bothacking | -11 -10 -10 -9 -8 -7 ------------ Run | Yrd Mat Min Mat Mat Fac Used RIF Installer . | . . . . . . Robots Hacked . | . . . . . . Non-combat . | . . . . . . Combat . | . . . . . . Robot Hacks Applied . | . . . . . . Relay Couplers Released . | . . . . . . Fabnet Peak Effective % . | . . . . . . Robots Rewired . | . . . . . . Allies Hacked . | . . . . . . Hacks Repelled . | . . . . . . Allies | -11 -10 -10 -9 -8 -7 -------- Run | Yrd Mat Min Mat Mat Fac Total Allies . | . . . . . . Largest Group . | . . . . . . Highest-Rated Group . | . . . . . . Highest-Rated Ally . | . . . . . . Total Orders . | . . . . . . Ally Attacks . | . . . . . . Total Damage . | . . . . . . Kills . | . . . . . . Allies Corrupted . | . . . . . . Allies Melted . | . . . . . . Intel | -11 -10 -10 -9 -8 -7 ------- Run | Yrd Mat Min Mat Mat Fac Robot Analysis Total . | . . . . . . Derelict Logs Recovered . | . . . . . . Drone Launches . | . . . . . . Drone Recoveries . | . . . . . . Exploration | -11 -10 -10 -9 -8 -7 ------------- Run | Yrd Mat Min Mat Mat Fac Turns Passed 1608 | 9 67 20 58 164 1290 Spaces Moved 582 | 18 132 38 116 238 40 Core 582 | 18 132 38 116 238 40 Treads . | . . . . . . Legs . | . . . . . . Wheels . | . . . . . . Hover . | . . . . . . Flight . | . . . . . . Fastest Speed 50 | 50 50 50 50 50 50 Average Speed 50 | 50 50 50 50 50 50 Slowest Speed 50 | 50 50 50 50 50 50 Overloaded Moves . | . . . . . . Propulsion Burnouts . | . . . . . . Robots Hopped . | . . . . . . Cave-ins Triggered 11 | . . . . . 11 Exploration Rate (%) 18 | 3 36 24 21 24 1 Regions Visited 5 Branch Regions 1 Pre-discovered Areas . | . . . . . . Known Exits Taken 2 | . . . 1 1 . Unknown Exits Taken 3 | 1 1 1 . . . Scrap Searched . | . . . . . . Spaces Dug 18 | . . . . 12 6 Terrain Destroyed 18 | . . . . 12 6 Melee 18 | . . . . 12 6 Projectile . | . . . . . . AOE . | . . . . . . Terrain Rammed . | . . . . . . Walls Destroyed . | . . . . . . Machines Disabled . | . . . . . . Actions | -11 -10 -10 -9 -8 -7 --------- Run | Yrd Mat Min Mat Mat Fac Total 1862 | 17 132 38 115 261 1299 Wait 1252 | . . . . . 1252 Move 577 | 17 131 38 115 237 39 Hop . | . . . . . . Pick Up 5 | . 1 . . 4 . Fast Attach 2 | . . . . 2 . Attach 4 | . . . . 3 1 Detach 3 | . . . . 3 . Swap . | . . . . . . Drop . | . . . . . . Fire . | . . . . . . Melee 18 | . . . . 12 6 Ram . | . . . . . . Kick . | . . . . . . Crush . | . . . . . . Escape Stasis 1 | . . . . . 1 Rewire . | . . . . . . Trap . | . . . . . . Miscellaneous . | . . . . . . Route ------- -11/Scrapyard -10/Materials -10/Mines -9/Materials (discovered 3 exits: *Mat x3) -8/Materials (discovered 3 exits: *Fac x3) -7/Factory History --------- Turn | Location | Event 4 | -11/Scrapyard | Discovered new exit (range 13) 10 | -11/Scrapyard | Entered Materials 38 | -10/Materials | Discovered new exit (range 16) 77 | -10/Materials | Entered Mines 94 | -10/Mines | Discovered new exit (range 7) 97 | -10/Mines | Entered Materials 97 | -9/Materials | Evolved 2 slots: Utility x2 143 | -9/Materials | Identified exit to Materials 155 | -9/Materials | Entered another Materials area 155 | -8/Materials | Evolved 2 slots: Utility x2 234 | -8/Materials | Identified exit to Factory 319 | -8/Materials | Entered Factory 319 | -7/Factory | Evolved 2 slots: Utility x2 355 | -7/Factory | Crushed by falling debris 356 | -7/Factory | Build established: Mutant 773 | -7/Factory | Crushed by falling debris 773 | -7/Factory | System corruption reached 10% 851 | -7/Factory | Crushed by falling debris 1077 | -7/Factory | Crushed by falling debris 1216 | -7/Factory | Crushed by falling debris 1220 | -7/Factory | Crushed by falling debris 1240 | -7/Factory | Crushed by falling debris 1339 | -7/Factory | Crushed by falling debris 1339 | -7/Factory | Core integrity fell below 50% 1518 | -7/Factory | Crushed by falling debris 1525 | -7/Factory | Crushed by falling debris 1609 | -7/Factory | Crushed by falling debris 1609 | -7/Factory | Self-destructed Last Messages --------------- 01240_ The unstable cave ceiling collapses. 01240_ Crushed by falling debris. 01264_ System corrupted: Energy discharge (-37). 01284_ R>&IGY0RFXR036L6TI|QPZTRH KXTBGFSV9RL 01319_ ALERT: Rogue bot located, Programmers report to Factory Zone 1F. 01325_ System corrupted: Energy discharge (-26). 01339_ The unstable cave ceiling collapses. 01339_ Crushed by falling debris. 01393_ SOVLU%7&&/=XV ,JDXT%GJJJN BV7 01409_ TY=LW8PXHXYT=>#6EEWKKEOUFSQ% 01452_ System corrupted: Energy discharge (-24). 01510_ QW2ZFTRQP